{"text_format":"1","workbook":"xlsx","n_sheets":4,"sheets":["管理用","入力","実績データ","入力画面説明"],"not_rendered":{"charts":0,"images":0,"macros":1,"external_links":0,"defined_names":3,"comments":0,"pivot_tables":0},"unopened":[],"bounds":{"document_bytes":16777216,"sheet_cells":100000,"rows_first":2000,"rows_last":500,"rows_between":2000,"halvings":0,"cell_chars":16384,"cell_head_chars":4096},"cells_cut":0,"cells_raw":0,"read":"whole","date_system":"1900"}

{"sheet":"管理用","index":0,"n_rows":86,"n_cols":7,"rows_kept":86,"cut":false,"hidden":true,"merged":[]}
[]
["シート保護"]
["入力シート・実績データシートをシート保護しています。"]
["入力シート・実績データシートのＡ～Ｕ列はセルの書式設定においてロックをしていません。"]
["入力や選択はできますが、行・列の挿入削除をできないようにしています。"]
["その他の列はロックしているため入力などもできません。"]
[]
["ブック保護"]
["シート名を変更できないようにするため・管理用シートを非表示にするためブックを保護しています。"]
[]
["VBAパスワード"]
["マクロ（ＶＢＡ）を変更できないよう、パスワードをかけています。"]
[]
["ＶＢＡ仕様","2024/8/25更新"]
["命名：プロシージャ名と、個有名を示す定数・変数の一部に日本語を使用しています。変数の一般的な用語には英語・アルファベット・略語を使用しています。"]
[]
["コンポーネント","プロシージャ","引数","戻り値の型","プロシージャ概要","呼び出しプロシージャ・フォーム"]
["Module1","開始打刻","なし","なし","開始打刻","前処理_打刻","※前処理"]
[null,null,null,null,null,"確認ユーザーフォーム(MSG5)","※メイン処理"]
[null,null,null,null,null,"終了打刻忘れ(Bin)","※メイン処理"]
[null,null,null,null,null,"新規行打刻_実績データ(EndRw, Bin)","※メイン処理"]
[null,null,null,null,null,"開始打刻_便名リスト(Bin, Jikoku)","※メイン処理"]
[null,null,null,null,null,"自動実行_メッセージを閉じる(Jikoku, MSG2)","※メイン処理"]
[null,null,null,null,null,"検索モードを部分一致に変更","※後処理"]
[null,null,null,null,null,"自動実行(Jikoku, glbSec入力, \"入力画面クリア\")","※後処理"]
["Module1","終了打刻","なし","なし","終了打刻","前処理_打刻","※前処理"]
[null,null,null,null,null,"確認ユーザーフォーム(MSG4)","※メイン処理"]
[null,null,null,null,null,"新規行打刻_実績データ(EndRw, Bin)","※メイン処理"]
[null,null,null,null,null,"自動実行_メッセージを閉じる(EndJikoku, MSG3)","※メイン処理"]
[null,null,null,null,null,"終了打刻_便名リスト(Bin, StJikoku, EndJikoku)","※メイン処理"]
[null,null,null,null,null,"検索モードを部分一致に変更","※後処理"]
[null,null,null,null,null,"自動実行(EndJikoku, glbSec入力, \"入力画面クリア\")","※後処理"]
[null,null,null,null,null,"自動実行(EndJikoku, glbSec便名リスト, \"'クリア_便名リスト \"\"\" & Bin & \"\"\"'\")","※後処理"]
["Module1","時間超過チェック","なし","なし","入力画面の便名の開始時刻が実績データの超過確認時間を過ぎていれば塗りつぶしにする"]
["Module1","打刻情報更新_便名リスト","なし","なし","実績データの内容に合わせて、入力シートの便名リストの内容を更新する","シート全行表示(Ws実績データ)"]
[null,null,null,null,null,"シート全行表示(Ws入力)"]
[null,null,null,null,null,"クリア_便名リスト(Bin)"]
[null,null,null,null,null,"開始打刻_便名リスト(Bin, Jikoku)"]
["Module1","実績データクリア","なし","なし","実績データシートを全件クリア"]
["Module1","全ての自動クリアを解除し強制クリア","なし","なし","全ての自動クリアを解除し強制クリア","自動実行解除(最大日時(セル範囲(Ws入力, glbstR便名リスト, 列.便名リスト開始, 1)), glbSecM, \"メッセージを閉じる\")"]
[null,null,null,null,null,"メッセージを閉じる"]
[null,null,null,null,null,"自動実行解除(最大日時(セル範囲(Ws入力, glbstR便名リスト, 列.便名リスト開始, 1)), glbSec入力, \"入力画面クリア\")"]
[null,null,null,null,null,"入力画面クリア"]
[null,null,null,null,null,"自動実行解除(Jikoku, glbSec便名リスト, \"'クリア_便名リスト \"\"\" & Bin & \"\"\"'\")"]
[null,null,null,null,null,"クリア_便名リスト(Bin)"]
[null,null,null,null,null,"打刻情報更新_便名リスト"]
["Module2","一般的な関数を記載している。内容省略"]
["Module3","前処理_打刻","なし","string","前処理_打刻","空白判断(Ws入力.Range(glb入力).Value)"]
[null,null,null,null,null,"シート全行表示(Ws実績データ)"]
[null,null,null,null,null,"シート全行表示(Ws入力)"]
[null,null,null,null,null,"自動実行解除(最大日時(セル範囲(Ws入力, glbstR便名リスト, 列.便名リスト開始, 1)), glbSec入力, \"入力画面クリア\")"]
[null,null,null,null,null,"自動実行解除(最大日時(セル範囲(Ws入力, glbstR便名リスト, 列.便名リスト開始, 1)), glbSecM, \"メッセージを閉じる\")"]
[null,null,null,null,null,"メッセージを閉じる"]
[null,null,null,null,null,"空白判断(Ws入力.Cells(該当行_便名リスト(Bi), 列.便名リスト終了).Value)"]
[null,null,null,null,null,"自動実行解除(Ji, glbSec便名リスト, \"'クリア_便名リスト \"\"\" & Bi & \"\"\"'\") "]
["Module3","開始打刻_便名リスト","ByVal Bin As String, ByVal Jikoku As Variant","なし","開始打刻_便名リスト","該当行_便名リスト(Bin)"]
["Module3","終了打刻_便名リスト","ByVal Bin As String, ByVal StJikoku As Variant, ByVal EndJikoku As Date","なし","終了打刻_便名リスト","該当行_便名リスト(Bin)"]
["Module3","クリア_便名リスト","ByVal Bin As String","なし","便名リストの該当行のみをクリアする","該当行_便名リスト(Bin)"]
["Module3","新規行打刻_実績データ","ByVal Rw As Long, ByVal Bin As String","なし","実績データの新規打刻行を作る","最下行(Ws実績データ, 列.実績日付)"]
["Module3","終了打刻忘れ","ByVal Bin As String","なし","実績データシートで指定した便名の作業中（終了打刻なし）の行が見つかった場合、終了時刻に「打刻忘れ」と入力する。","最下行(Ws実績データ, 列.実績日付)"]
[null,null,null,null,null,"作業中の行_実績データ(Bin)"]
["Module4","Ws実績データ","なし","Worksheet","シートを定数のように扱う"]
["Module4","Ws入力","なし","Worksheet","シートを定数のように扱う"]
["Module4","確認ユーザーフォーム","なし","なし","打刻忘れ確認用のユーザーフォーム"]
["Module4","自動実行_メッセージを閉じる","なし","なし","自動実行_メッセージを閉じる"]
["Module4","メッセージを閉じる","なし","なし","打刻完了メッセージを閉じる"]
["Module4","入力画面クリア","なし","なし","入力シートの対象便名をクリアする","自動実行解除(最大日時(セル範囲(Ws入力, glbstR便名リスト, 列.便名リスト開始, 1)), glbSec入力, \"入力画面クリア\")"]
["Module4","該当行_便名リスト","ByVal Bin As String","long","便名が一致する便名リストの該当行","完全一致検索_下から","※Find関数"]
[null,null,null,null,null,"セル範囲"]
["Module4","作業中の行_実績データ","ByVal Bin As String","long","便名が一致する実績データシートの作業中の行","完全一致検索_下から","※Find関数"]
[null,null,null,null,null,"セル範囲"]
["ThisWorkbook","Workbook_Open",null,null,"免責事項フォーム.Show"]
[null,"Workbook_BeforeClose",null,null,null,"全ての自動クリアを解除し強制クリア"]
[null,null,null,null,null,"マクロ終了"]
["UserForm1","UserForm_Initialize",null,null,null,"ユーザーフォーム中央表示"]
[null,"ユーザーフォーム中央表示",null,null,"ユーザーフォーム中央表示"]
["UserForm2","UserForm_Initialize",null,null,null,"ユーザーフォーム中央表示"]
[null,"ユーザーフォーム中央表示"]
[null,"CommandButton1_Click",null,null,"はい　閉じる"]
[null,"CommandButton2_Click",null,null,"いいえ　End"]
["免責事項フォーム","同意してファイルを開くボタン_Click",null,null,"ブックを開く"]
[null,"同意せず閉じるボタン_Click",null,null,"ブックを閉じる"]
[null,"UserForm_QueryClose",null,null,"メッセージ［ファイルを閉じる］ボタンを使用してください"]
["Sheet2(入力)"," Worksheet_Change","ByVal Target As Range",null,"入力画面の便名が変更された場合、自動クリアを解除する","自動実行解除(最大日時(セル範囲(Ws入力, glbstR便名リスト, 列.便名リスト開始, 1)), glbSec入力, \"入力画面クリア\")"]
[null,"Worksheet_SelectionChange","ByVal Target As Range",null,"便名リストの便名を選択すると、指定のセルに便名が表示される","最下行(Ws入力, 列.便名リスト便名)"]
["Sheet3(実績データ)","Worksheet_Activate","ByVal Target As Range",null,"実績データを表示する場合確認メッセージを表示する"]

{"sheet":"入力","index":1,"n_rows":59,"n_cols":8,"rows_kept":59,"cut":false,"hidden":false,"merged":[]}
[null,"荷役作業の時間管理ツール"]
[]
[null,"事業所","〇〇工場","（固定）"]
[]
[null,null,"STEP１",null,"STEP２",null,null,"STEP３"]
[null,null,"便名を以下のリストから選択してください。",null,"【作業開始打刻】 をし、荷役作業を実施ください。",null,null,"すべての荷役作業が終了したことを確認し、【作業終了打刻】 をしてください。"]
[null,null,"便名",null,"↓PUSH",null,null,"↓PUSH"]
[]
[]
[null,null,"便名リスト","開始打刻","終了打刻","ステータス"]
[null,null,"8-10時_①"]
[null,null,"8-10時_②"]
[null,null,"8-10時_③"]
[null,null,"8-10時_④"]
[null,null,"8-10時_⑤"]
[null,null,"8-10時_⑥"]
[null,null,"8-10時_⑦"]
[null,null,"8-10時_⑧"]
[null,null,"10-12時_①"]
[null,null,"10-12時_②"]
[null,null,"10-12時_③"]
[null,null,"10-12時_④"]
[null,null,"10-12時_⑤"]
[null,null,"10-12時_⑥"]
[null,null,"10-12時_⑦"]
[null,null,"10-12時_⑧"]
[null,null,"12-14時_①"]
[null,null,"12-14時_②"]
[null,null,"12-14時_③"]
[null,null,"12-14時_④"]
[null,null,"12-14時_⑤"]
[null,null,"12-14時_⑥"]
[null,null,"12-14時_⑦"]
[null,null,"12-14時_⑧"]
[null,null,"14-16時_①"]
[null,null,"14-16時_②"]
[null,null,"14-16時_③"]
[null,null,"14-16時_④"]
[null,null,"14-16時_⑤"]
[null,null,"14-16時_⑥"]
[null,null,"14-16時_⑦"]
[null,null,"14-16時_⑧"]
[null,null,"16-18時_①"]
[null,null,"16-18時_②"]
[null,null,"16-18時_③"]
[null,null,"16-18時_④"]
[null,null,"16-18時_⑤"]
[null,null,"16-18時_⑥"]
[null,null,"16-18時_⑦"]
[null,null,"16-18時_⑧"]
[null,null,"18-20時_①"]
[null,null,"18-20時_②"]
[null,null,"18-20時_③"]
[null,null,"18-20時_④"]
[null,null,"18-20時_⑤"]
[null,null,"18-20時_⑥"]
[null,null,"18-20時_⑦"]
[null,null,"18-20時_⑧"]
[null,null,"18-20時_⑨"]

{"sheet":"実績データ","index":2,"n_rows":500,"n_cols":11,"rows_kept":500,"cut":false,"hidden":false,"merged":[]}
[null,null,null,null,null,null,null,null,"（平均：K3で指定した作業時間以下を除く。7～10000行までを計算対象としている。）"]
[null,null,null,null,null,null,null,null,"Average","以下の作業時間超過を赤塗りつぶし","以下の作業時間未満を黄色塗りつぶし（あまりにも短く、打刻ミスと考えられるもの）"]
[null,null,null,null,null,null,null,null,{"$f":"SUMIF(I$7:I$9997,\">\"&$K$3)/COUNTIF(I$7:I$9997,\">\"&$K$3)","v":"01:46:02.333"},"02:00:00","00:10:00"]
[null,null,"↓数式削除不可"]
[null,null,null,null,"日付","時間"]
[null,null,null,"便名","（作業開始打刻）","開始","終了",null,"荷役作業時間","原因","再発防止策"]
[null,null,{"$f":"IF(D7=\"\",0,D7&G7)","v":"8-10時_①45539.8241087963"},"8-10時_①","2024-09-04",45539.788912037038,45539.824108796296,null,{"$f":"IF(OR(F7=\"\",F7=\"打刻忘れ\"),0,IF(OR(G7=\"\",G7=\"打刻忘れ\"),0,G7-F7))","v":"00:50:41"}]
[null,null,"8-10時_④45539.9101273148","8-10時_④","2024-09-04",45539.788946759261,45539.910127314812,null,{"$f":"IF(OR(F8=\"\",F8=\"打刻忘れ\"),0,IF(OR(G8=\"\",G8=\"打刻忘れ\"),0,G8-F8))","v":"02:54:30"}]
[null,null,"8-10時_⑦45539.8534953704","8-10時_⑦","2024-09-04",45539.788958333331,45539.853495370371,null,"01:32:56"]
[null,null,0,null,null,null,null,null,"00:00:00"]
[null,null,0,null,null,null,null,null,"00:00:00"]
[null,null,0,null,null,null,null,null,"00:00:00"]
[null,null,0,null,null,null,null,null,"00:00:00"]
[null,null,0,null,null,null,null,null,"00:00:00"]
[null,null,0,null,null,null,null,null,"00:00:00"]
[null,null,0,null,null,null,null,null,"00:00:00"]
[null,null,0,null,null,null,null,null,"00:00:00"]
[null,null,0,null,null,null,null,null,"00:00:00"]
[null,null,0,null,null,null,null,null,"00:00:00"]
[null,null,0,null,null,null,null,null,"00:00:00"]
[null,null,0,null,null,null,null,null,"00:00:00"]
[null,null,0,null,null,null,null,null,"00:00:00"]
[null,null,0,null,null,null,null,null,"00:00:00"]
[null,null,0,null,null,null,null,null,"00:00:00"]
[null,null,0,null,null,null,null,null,"00:00:00"]
[null,null,0,null,null,null,null,null,"00:00:00"]
[null,null,0,null,null,null,null,null,"00:00:00"]
[null,null,0,null,null,null,null,null,"00:00:00"]
[null,null,0,null,null,null,null,null,"00:00:00"]
[null,null,0,null,null,null,null,null,"00:00:00"]
[null,null,0,null,null,null,null,null,"00:00:00"]
[null,null,0,null,null,null,null,null,"00:00:00"]
[null,null,0,null,null,null,null,null,"00:00:00"]
[null,null,0,null,null,null,null,null,"00:00:00"]
[null,null,0,null,null,null,null,null,"00:00:00"]
[null,null,0,null,null,null,null,null,"00:00:00"]
[null,null,0,null,null,null,null,null,"00:00:00"]
[null,null,0,null,null,null,null,null,"00:00:00"]
[null,null,0,null,null,null,null,null,"00:00:00"]
[null,null,0,null,null,null,null,null,"00:00:00"]
[null,null,0,null,null,null,null,null,"00:00:00"]
[null,null,0,null,null,null,null,null,"00:00:00"]
[null,null,0,null,null,null,null,null,"00:00:00"]
[null,null,0,null,null,null,null,null,"00:00:00"]
[null,null,0,null,null,null,null,null,"00:00:00"]
[null,null,0,null,null,null,null,null,"00:00:00"]
[null,null,0,null,null,null,null,null,"00:00:00"]
[null,null,0,null,null,null,null,null,"00:00:00"]
[null,null,0,null,null,null,null,null,"00:00:00"]
[null,null,0,null,null,null,null,null,"00:00:00"]
[null,null,0,null,null,null,null,null,"00:00:00"]
[null,null,0,null,null,null,null,null,"00:00:00"]
[null,null,0,null,null,null,null,null,"00:00:00"]
[null,null,0,null,null,null,null,null,"00:00:00"]
[null,null,0,null,null,null,null,null,"00:00:00"]
[null,null,0,null,null,null,null,null,"00:00:00"]
[null,null,0,null,null,null,null,null,"00:00:00"]
[null,null,0,null,null,null,null,null,"00:00:00"]
[null,null,0,null,null,null,null,null,"00:00:00"]
[null,null,0,null,null,null,null,null,"00:00:00"]
[null,null,0,null,null,null,null,null,"00:00:00"]
[null,null,0,null,null,null,null,null,"00:00:00"]
[null,null,0,null,null,null,null,null,"00:00:00"]
[null,null,0,null,null,null,null,null,"00:00:00"]
[null,null,0,null,null,null,null,null,"00:00:00"]
[null,null,0,null,null,null,null,null,"00:00:00"]
[null,null,0,null,null,null,null,null,"00:00:00"]
[null,null,0,null,null,null,null,null,"00:00:00"]
[null,null,0,null,null,null,null,null,"00:00:00"]
[null,null,0,null,null,null,null,null,"00:00:00"]
[null,null,0,null,null,null,null,null,"00:00:00"]
[null,null,0,null,null,null,null,null,{"$f":"IF(OR(F72=\"\",F72=\"打刻忘れ\"),0,IF(OR(G72=\"\",G72=\"打刻忘れ\"),0,G72-F72))","v":"00:00:00"}]
[null,null,0,null,null,null,null,null,"00:00:00"]
[null,null,0,null,null,null,null,null,"00:00:00"]
[null,null,0,null,null,null,null,null,"00:00:00"]
[null,null,0,null,null,null,null,null,"00:00:00"]
[null,null,0,null,null,null,null,null,"00:00:00"]
[null,null,0,null,null,null,null,null,"00:00:00"]
[null,null,0,null,null,null,null,null,"00:00:00"]
[null,null,0,null,null,null,null,null,"00:00:00"]
[null,null,0,null,null,null,null,null,"00:00:00"]
[null,null,0,null,null,null,null,null,"00:00:00"]
[null,null,0,null,null,null,null,null,"00:00:00"]
[null,null,0,null,null,null,null,null,"00:00:00"]
[null,null,0,null,null,null,null,null,"00:00:00"]
[null,null,0,null,null,null,null,null,"00:00:00"]
[null,null,0,null,null,null,null,null,"00:00:00"]
[null,null,0,null,null,null,null,null,"00:00:00"]
[null,null,0,null,null,null,null,null,"00:00:00"]
[null,null,0,null,null,null,null,null,"00:00:00"]
[null,null,0,null,null,null,null,null,"00:00:00"]
[null,null,0,null,null,null,null,null,"00:00:00"]
[null,null,0,null,null,null,null,null,"00:00:00"]
[null,null,0,null,null,null,null,null,"00:00:00"]
[null,null,0,null,null,null,null,null,"00:00:00"]
[null,null,0,null,null,null,null,null,"00:00:00"]
[null,null,0,null,null,null,null,null,"00:00:00"]
[null,null,0,null,null,null,null,null,"00:00:00"]
[null,null,0,null,null,null,null,null,"00:00:00"]
[null,null,0,null,null,null,null,null,"00:00:00"]
[null,null,0,null,null,null,null,null,"00:00:00"]
[null,null,0,null,null,null,null,null,"00:00:00"]
[null,null,0,null,null,null,null,null,"00:00:00"]
[null,null,0,null,null,null,null,null,"00:00:00"]
[null,null,0,null,null,null,null,null,"00:00:00"]
[null,null,0,null,null,null,null,null,"00:00:00"]
[null,null,0,null,null,null,null,null,"00:00:00"]
[null,null,0,null,null,null,null,null,"00:00:00"]
[null,null,0,null,null,null,null,null,"00:00:00"]
[null,null,0,null,null,null,null,null,"00:00:00"]
[null,null,0,null,null,null,null,null,"00:00:00"]
[null,null,0,null,null,null,null,null,"00:00:00"]
[null,null,0,null,null,null,null,null,"00:00:00"]
[null,null,0,null,null,null,null,null,"00:00:00"]
[null,null,0,null,null,null,null,null,"00:00:00"]
[null,null,0,null,null,null,null,null,"00:00:00"]
[null,null,0,null,null,null,null,null,"00:00:00"]
[null,null,0,null,null,null,null,null,"00:00:00"]
[null,null,0,null,null,null,null,null,"00:00:00"]
[null,null,0,null,null,null,null,null,"00:00:00"]
[null,null,0,null,null,null,null,null,"00:00:00"]
[null,null,0,null,null,null,null,null,"00:00:00"]
[null,null,0,null,null,null,null,null,"00:00:00"]
[null,null,0,null,null,null,null,null,"00:00:00"]
[null,null,0,null,null,null,null,null,"00:00:00"]
[null,null,0,null,null,null,null,null,"00:00:00"]
[null,null,0,null,null,null,null,null,"00:00:00"]
[null,null,0,null,null,null,null,null,"00:00:00"]
[null,null,0,null,null,null,null,null,"00:00:00"]
[null,null,0,null,null,null,null,null,"00:00:00"]
[null,null,0,null,null,null,null,null,"00:00:00"]
[null,null,0,null,null,null,null,null,"00:00:00"]
[null,null,0,null,null,null,null,null,"00:00:00"]
[null,null,0,null,null,null,null,null,"00:00:00"]
[null,null,0,null,null,null,null,null,"00:00:00"]
[null,null,0,null,null,null,null,null,{"$f":"IF(OR(F136=\"\",F136=\"打刻忘れ\"),0,IF(OR(G136=\"\",G136=\"打刻忘れ\"),0,G136-F136))","v":"00:00:00"}]
[null,null,0,null,null,null,null,null,"00:00:00"]
[null,null,0,null,null,null,null,null,"00:00:00"]
[null,null,0,null,null,null,null,null,"00:00:00"]
[null,null,0,null,null,null,null,null,"00:00:00"]
[null,null,0,null,null,null,null,null,"00:00:00"]
[null,null,0,null,null,null,null,null,"00:00:00"]
[null,null,0,null,null,null,null,null,"00:00:00"]
[null,null,0,null,null,null,null,null,"00:00:00"]
[null,null,0,null,null,null,null,null,"00:00:00"]
[null,null,0,null,null,null,null,null,"00:00:00"]
[null,null,0,null,null,null,null,null,"00:00:00"]
[null,null,0,null,null,null,null,null,"00:00:00"]
[null,null,0,null,null,null,null,null,"00:00:00"]
[null,null,0,null,null,null,null,null,"00:00:00"]
[null,null,0,null,null,null,null,null,"00:00:00"]
[null,null,0,null,null,null,null,null,"00:00:00"]
[null,null,0,null,null,null,null,null,"00:00:00"]
[null,null,0,null,null,null,null,null,"00:00:00"]
[null,null,0,null,null,null,null,null,"00:00:00"]
[null,null,0,null,null,null,null,null,"00:00:00"]
[null,null,0,null,null,null,null,null,"00:00:00"]
[null,null,0,null,null,null,null,null,"00:00:00"]
[null,null,0,null,null,null,null,null,"00:00:00"]
[null,null,0,null,null,null,null,null,"00:00:00"]
[null,null,0,null,null,null,null,null,"00:00:00"]
[null,null,0,null,null,null,null,null,"00:00:00"]
[null,null,0,null,null,null,null,null,"00:00:00"]
[null,null,0,null,null,null,null,null,"00:00:00"]
[null,null,0,null,null,null,null,null,"00:00:00"]
[null,null,0,null,null,null,null,null,"00:00:00"]
[null,null,0,null,null,null,null,null,"00:00:00"]
[null,null,0,null,null,null,null,null,"00:00:00"]
[null,null,{"$f":"IF(D169=\"\",0,D169&G169)","v":0},null,null,null,null,null,"00:00:00"]
[null,null,0,null,null,null,null,null,"00:00:00"]
[null,null,0,null,null,null,null,null,"00:00:00"]
[null,null,0,null,null,null,null,null,"00:00:00"]
[null,null,0,null,null,null,null,null,"00:00:00"]
[null,null,0,null,null,null,null,null,"00:00:00"]
[null,null,0,null,null,null,null,null,"00:00:00"]
[null,null,0,null,null,null,null,null,"00:00:00"]
[null,null,0,null,null,null,null,null,"00:00:00"]
[null,null,0,null,null,null,null,null,"00:00:00"]
[null,null,0,null,null,null,null,null,"00:00:00"]
[null,null,0,null,null,null,null,null,"00:00:00"]
[null,null,0,null,null,null,null,null,"00:00:00"]
[null,null,0,null,null,null,null,null,"00:00:00"]
[null,null,0,null,null,null,null,null,"00:00:00"]
[null,null,0,null,null,null,null,null,"00:00:00"]
[null,null,0,null,null,null,null,null,"00:00:00"]
[null,null,0,null,null,null,null,null,"00:00:00"]
[null,null,0,null,null,null,null,null,"00:00:00"]
[null,null,0,null,null,null,null,null,"00:00:00"]
[null,null,0,null,null,null,null,null,"00:00:00"]
[null,null,0,null,null,null,null,null,"00:00:00"]
[null,null,0,null,null,null,null,null,"00:00:00"]
[null,null,0,null,null,null,null,null,"00:00:00"]
[null,null,0,null,null,null,null,null,"00:00:00"]
[null,null,0,null,null,null,null,null,"00:00:00"]
[null,null,0,null,null,null,null,null,"00:00:00"]
[null,null,0,null,null,null,null,null,"00:00:00"]
[null,null,0,null,null,null,null,null,"00:00:00"]
[null,null,0,null,null,null,null,null,"00:00:00"]
[null,null,0,null,null,null,null,null,"00:00:00"]
[null,null,{"$f":"IF(D200=\"\",0,D200&G200)","v":0},null,null,null,null,null,{"$f":"IF(OR(F200=\"\",F200=\"打刻忘れ\"),0,IF(OR(G200=\"\",G200=\"打刻忘れ\"),0,G200-F200))","v":"00:00:00"}]
[null,null,0,null,null,null,null,null,"00:00:00"]
[null,null,0,null,null,null,null,null,"00:00:00"]
[null,null,0,null,null,null,null,null,"00:00:00"]
[null,null,0,null,null,null,null,null,"00:00:00"]
[null,null,0,null,null,null,null,null,"00:00:00"]
[null,null,0,null,null,null,null,null,"00:00:00"]
[null,null,0,null,null,null,null,null,"00:00:00"]
[null,null,0,null,null,null,null,null,"00:00:00"]
[null,null,0,null,null,null,null,null,"00:00:00"]
[null,null,0,null,null,null,null,null,"00:00:00"]
[null,null,0,null,null,null,null,null,"00:00:00"]
[null,null,0,null,null,null,null,null,"00:00:00"]
[null,null,0,null,null,null,null,null,"00:00:00"]
[null,null,0,null,null,null,null,null,"00:00:00"]
[null,null,0,null,null,null,null,null,"00:00:00"]
[null,null,0,null,null,null,null,null,"00:00:00"]
[null,null,0,null,null,null,null,null,"00:00:00"]
[null,null,0,null,null,null,null,null,"00:00:00"]
[null,null,0,null,null,null,null,null,"00:00:00"]
[null,null,0,null,null,null,null,null,"00:00:00"]
[null,null,0,null,null,null,null,null,"00:00:00"]
[null,null,0,null,null,null,null,null,"00:00:00"]
[null,null,0,null,null,null,null,null,"00:00:00"]
[null,null,0,null,null,null,null,null,"00:00:00"]
[null,null,0,null,null,null,null,null,"00:00:00"]
[null,null,0,null,null,null,null,null,"00:00:00"]
[null,null,0,null,null,null,null,null,"00:00:00"]
[null,null,0,null,null,null,null,null,"00:00:00"]
[null,null,0,null,null,null,null,null,"00:00:00"]
[null,null,0,null,null,null,null,null,"00:00:00"]
[null,null,0,null,null,null,null,null,"00:00:00"]
[null,null,0,null,null,null,null,null,"00:00:00"]
[null,null,0,null,null,null,null,null,"00:00:00"]
[null,null,0,null,null,null,null,null,"00:00:00"]
[null,null,0,null,null,null,null,null,"00:00:00"]
[null,null,0,null,null,null,null,null,"00:00:00"]
[null,null,0,null,null,null,null,null,"00:00:00"]
[null,null,0,null,null,null,null,null,"00:00:00"]
[null,null,0,null,null,null,null,null,"00:00:00"]
[null,null,0,null,null,null,null,null,"00:00:00"]
[null,null,0,null,null,null,null,null,"00:00:00"]
[null,null,0,null,null,null,null,null,"00:00:00"]
[null,null,0,null,null,null,null,null,"00:00:00"]
[null,null,0,null,null,null,null,null,"00:00:00"]
[null,null,0,null,null,null,null,null,"00:00:00"]
[null,null,0,null,null,null,null,null,"00:00:00"]
[null,null,0,null,null,null,null,null,"00:00:00"]
[null,null,0,null,null,null,null,null,"00:00:00"]
[null,null,0,null,null,null,null,null,"00:00:00"]
[null,null,0,null,null,null,null,null,"00:00:00"]
[null,null,0,null,null,null,null,null,"00:00:00"]
[null,null,0,null,null,null,null,null,"00:00:00"]
[null,null,0,null,null,null,null,null,"00:00:00"]
[null,null,0,null,null,null,null,null,"00:00:00"]
[null,null,0,null,null,null,null,null,"00:00:00"]
[null,null,0,null,null,null,null,null,"00:00:00"]
[null,null,0,null,null,null,null,null,"00:00:00"]
[null,null,0,null,null,null,null,null,"00:00:00"]
[null,null,0,null,null,null,null,null,"00:00:00"]
[null,null,0,null,null,null,null,null,"00:00:00"]
[null,null,0,null,null,null,null,null,"00:00:00"]
[null,null,0,null,null,null,null,null,"00:00:00"]
[null,null,0,null,null,null,null,null,"00:00:00"]
[null,null,{"$f":"IF(D264=\"\",0,D264&G264)","v":0},null,null,null,null,null,{"$f":"IF(OR(F264=\"\",F264=\"打刻忘れ\"),0,IF(OR(G264=\"\",G264=\"打刻忘れ\"),0,G264-F264))","v":"00:00:00"}]
[null,null,0,null,null,null,null,null,"00:00:00"]
[null,null,0,null,null,null,null,null,"00:00:00"]
[null,null,0,null,null,null,null,null,"00:00:00"]
[null,null,0,null,null,null,null,null,"00:00:00"]
[null,null,0,null,null,null,null,null,"00:00:00"]
[null,null,0,null,null,null,null,null,"00:00:00"]
[null,null,0,null,null,null,null,null,"00:00:00"]
[null,null,0,null,null,null,null,null,"00:00:00"]
[null,null,0,null,null,null,null,null,"00:00:00"]
[null,null,0,null,null,null,null,null,"00:00:00"]
[null,null,0,null,null,null,null,null,"00:00:00"]
[null,null,0,null,null,null,null,null,"00:00:00"]
[null,null,0,null,null,null,null,null,"00:00:00"]
[null,null,0,null,null,null,null,null,"00:00:00"]
[null,null,0,null,null,null,null,null,"00:00:00"]
[null,null,0,null,null,null,null,null,"00:00:00"]
[null,null,0,null,null,null,null,null,"00:00:00"]
[null,null,0,null,null,null,null,null,"00:00:00"]
[null,null,0,null,null,null,null,null,"00:00:00"]
[null,null,0,null,null,null,null,null,"00:00:00"]
[null,null,0,null,null,null,null,null,"00:00:00"]
[null,null,0,null,null,null,null,null,"00:00:00"]
[null,null,0,null,null,null,null,null,"00:00:00"]
[null,null,0,null,null,null,null,null,"00:00:00"]
[null,null,0,null,null,null,null,null,"00:00:00"]
[null,null,0,null,null,null,null,null,"00:00:00"]
[null,null,0,null,null,null,null,null,"00:00:00"]
[null,null,0,null,null,null,null,null,"00:00:00"]
[null,null,0,null,null,null,null,null,"00:00:00"]
[null,null,0,null,null,null,null,null,"00:00:00"]
[null,null,0,null,null,null,null,null,"00:00:00"]
[null,null,0,null,null,null,null,null,"00:00:00"]
[null,null,0,null,null,null,null,null,"00:00:00"]
[null,null,0,null,null,null,null,null,"00:00:00"]
[null,null,0,null,null,null,null,null,"00:00:00"]
[null,null,0,null,null,null,null,null,"00:00:00"]
[null,null,0,null,null,null,null,null,"00:00:00"]
[null,null,0,null,null,null,null,null,"00:00:00"]
[null,null,0,null,null,null,null,null,"00:00:00"]
[null,null,0,null,null,null,null,null,"00:00:00"]
[null,null,0,null,null,null,null,null,"00:00:00"]
[null,null,0,null,null,null,null,null,"00:00:00"]
[null,null,0,null,null,null,null,null,"00:00:00"]
[null,null,0,null,null,null,null,null,"00:00:00"]
[null,null,0,null,null,null,null,null,"00:00:00"]
[null,null,0,null,null,null,null,null,"00:00:00"]
[null,null,0,null,null,null,null,null,"00:00:00"]
[null,null,0,null,null,null,null,null,"00:00:00"]
[null,null,0,null,null,null,null,null,"00:00:00"]
[null,null,0,null,null,null,null,null,"00:00:00"]
[null,null,0,null,null,null,null,null,"00:00:00"]
[null,null,0,null,null,null,null,null,"00:00:00"]
[null,null,0,null,null,null,null,null,"00:00:00"]
[null,null,0,null,null,null,null,null,"00:00:00"]
[null,null,0,null,null,null,null,null,"00:00:00"]
[null,null,0,null,null,null,null,null,"00:00:00"]
[null,null,0,null,null,null,null,null,"00:00:00"]
[null,null,0,null,null,null,null,null,"00:00:00"]
[null,null,0,null,null,null,null,null,"00:00:00"]
[null,null,0,null,null,null,null,null,"00:00:00"]
[null,null,0,null,null,null,null,null,"00:00:00"]
[null,null,0,null,null,null,null,null,"00:00:00"]
[null,null,0,null,null,null,null,null,"00:00:00"]
[null,null,{"$f":"IF(D328=\"\",0,D328&G328)","v":0},null,null,null,null,null,{"$f":"IF(OR(F328=\"\",F328=\"打刻忘れ\"),0,IF(OR(G328=\"\",G328=\"打刻忘れ\"),0,G328-F328))","v":"00:00:00"}]
[null,null,0,null,null,null,null,null,"00:00:00"]
[null,null,0,null,null,null,null,null,"00:00:00"]
[null,null,0,null,null,null,null,null,"00:00:00"]
[null,null,0,null,null,null,null,null,"00:00:00"]
[null,null,0,null,null,null,null,null,"00:00:00"]
[null,null,0,null,null,null,null,null,"00:00:00"]
[null,null,0,null,null,null,null,null,"00:00:00"]
[null,null,0,null,null,null,null,null,"00:00:00"]
[null,null,0,null,null,null,null,null,"00:00:00"]
[null,null,0,null,null,null,null,null,"00:00:00"]
[null,null,0,null,null,null,null,null,"00:00:00"]
[null,null,0,null,null,null,null,null,"00:00:00"]
[null,null,0,null,null,null,null,null,"00:00:00"]
[null,null,0,null,null,null,null,null,"00:00:00"]
[null,null,0,null,null,null,null,null,"00:00:00"]
[null,null,0,null,null,null,null,null,"00:00:00"]
[null,null,0,null,null,null,null,null,"00:00:00"]
[null,null,0,null,null,null,null,null,"00:00:00"]
[null,null,0,null,null,null,null,null,"00:00:00"]
[null,null,0,null,null,null,null,null,"00:00:00"]
[null,null,0,null,null,null,null,null,"00:00:00"]
[null,null,0,null,null,null,null,null,"00:00:00"]
[null,null,0,null,null,null,null,null,"00:00:00"]
[null,null,0,null,null,null,null,null,"00:00:00"]
[null,null,0,null,null,null,null,null,"00:00:00"]
[null,null,0,null,null,null,null,null,"00:00:00"]
[null,null,0,null,null,null,null,null,"00:00:00"]
[null,null,0,null,null,null,null,null,"00:00:00"]
[null,null,0,null,null,null,null,null,"00:00:00"]
[null,null,0,null,null,null,null,null,"00:00:00"]
[null,null,0,null,null,null,null,null,"00:00:00"]
[null,null,0,null,null,null,null,null,"00:00:00"]
[null,null,0,null,null,null,null,null,"00:00:00"]
[null,null,0,null,null,null,null,null,"00:00:00"]
[null,null,0,null,null,null,null,null,"00:00:00"]
[null,null,0,null,null,null,null,null,"00:00:00"]
[null,null,0,null,null,null,null,null,"00:00:00"]
[null,null,0,null,null,null,null,null,"00:00:00"]
[null,null,0,null,null,null,null,null,"00:00:00"]
[null,null,0,null,null,null,null,null,"00:00:00"]
[null,null,0,null,null,null,null,null,"00:00:00"]
[null,null,0,null,null,null,null,null,"00:00:00"]
[null,null,0,null,null,null,null,null,"00:00:00"]
[null,null,0,null,null,null,null,null,"00:00:00"]
[null,null,0,null,null,null,null,null,"00:00:00"]
[null,null,0,null,null,null,null,null,"00:00:00"]
[null,null,0,null,null,null,null,null,"00:00:00"]
[null,null,0,null,null,null,null,null,"00:00:00"]
[null,null,0,null,null,null,null,null,"00:00:00"]
[null,null,0,null,null,null,null,null,"00:00:00"]
[null,null,0,null,null,null,null,null,"00:00:00"]
[null,null,0,null,null,null,null,null,"00:00:00"]
[null,null,0,null,null,null,null,null,"00:00:00"]
[null,null,0,null,null,null,null,null,"00:00:00"]
[null,null,0,null,null,null,null,null,"00:00:00"]
[null,null,0,null,null,null,null,null,"00:00:00"]
[null,null,0,null,null,null,null,null,"00:00:00"]
[null,null,0,null,null,null,null,null,"00:00:00"]
[null,null,0,null,null,null,null,null,"00:00:00"]
[null,null,0,null,null,null,null,null,"00:00:00"]
[null,null,0,null,null,null,null,null,"00:00:00"]
[null,null,0,null,null,null,null,null,"00:00:00"]
[null,null,0,null,null,null,null,null,"00:00:00"]
[null,null,{"$f":"IF(D392=\"\",0,D392&G392)","v":0},null,null,null,null,null,{"$f":"IF(OR(F392=\"\",F392=\"打刻忘れ\"),0,IF(OR(G392=\"\",G392=\"打刻忘れ\"),0,G392-F392))","v":"00:00:00"}]
[null,null,0,null,null,null,null,null,"00:00:00"]
[null,null,0,null,null,null,null,null,"00:00:00"]
[null,null,0,null,null,null,null,null,"00:00:00"]
[null,null,0,null,null,null,null,null,"00:00:00"]
[null,null,0,null,null,null,null,null,"00:00:00"]
[null,null,0,null,null,null,null,null,"00:00:00"]
[null,null,0,null,null,null,null,null,"00:00:00"]
[null,null,0,null,null,null,null,null,"00:00:00"]
[null,null,0,null,null,null,null,null,"00:00:00"]
[null,null,0,null,null,null,null,null,"00:00:00"]
[null,null,0,null,null,null,null,null,"00:00:00"]
[null,null,0,null,null,null,null,null,"00:00:00"]
[null,null,0,null,null,null,null,null,"00:00:00"]
[null,null,0,null,null,null,null,null,"00:00:00"]
[null,null,0,null,null,null,null,null,"00:00:00"]
[null,null,0,null,null,null,null,null,"00:00:00"]
[null,null,0,null,null,null,null,null,"00:00:00"]
[null,null,0,null,null,null,null,null,"00:00:00"]
[null,null,0,null,null,null,null,null,"00:00:00"]
[null,null,0,null,null,null,null,null,"00:00:00"]
[null,null,0,null,null,null,null,null,"00:00:00"]
[null,null,0,null,null,null,null,null,"00:00:00"]
[null,null,0,null,null,null,null,null,"00:00:00"]
[null,null,0,null,null,null,null,null,"00:00:00"]
[null,null,0,null,null,null,null,null,"00:00:00"]
[null,null,0,null,null,null,null,null,"00:00:00"]
[null,null,0,null,null,null,null,null,"00:00:00"]
[null,null,0,null,null,null,null,null,"00:00:00"]
[null,null,0,null,null,null,null,null,"00:00:00"]
[null,null,0,null,null,null,null,null,"00:00:00"]
[null,null,0,null,null,null,null,null,"00:00:00"]
[null,null,0,null,null,null,null,null,"00:00:00"]
[null,null,0,null,null,null,null,null,"00:00:00"]
[null,null,0,null,null,null,null,null,"00:00:00"]
[null,null,0,null,null,null,null,null,"00:00:00"]
[null,null,0,null,null,null,null,null,"00:00:00"]
[null,null,0,null,null,null,null,null,"00:00:00"]
[null,null,0,null,null,null,null,null,"00:00:00"]
[null,null,0,null,null,null,null,null,"00:00:00"]
[null,null,0,null,null,null,null,null,"00:00:00"]
[null,null,0,null,null,null,null,null,"00:00:00"]
[null,null,0,null,null,null,null,null,"00:00:00"]
[null,null,0,null,null,null,null,null,"00:00:00"]
[null,null,0,null,null,null,null,null,"00:00:00"]
[null,null,0,null,null,null,null,null,"00:00:00"]
[null,null,0,null,null,null,null,null,"00:00:00"]
[null,null,0,null,null,null,null,null,"00:00:00"]
[null,null,0,null,null,null,null,null,"00:00:00"]
[null,null,0,null,null,null,null,null,"00:00:00"]
[null,null,0,null,null,null,null,null,"00:00:00"]
[null,null,0,null,null,null,null,null,"00:00:00"]
[null,null,0,null,null,null,null,null,"00:00:00"]
[null,null,0,null,null,null,null,null,"00:00:00"]
[null,null,0,null,null,null,null,null,"00:00:00"]
[null,null,0,null,null,null,null,null,"00:00:00"]
[null,null,0,null,null,null,null,null,"00:00:00"]
[null,null,0,null,null,null,null,null,"00:00:00"]
[null,null,0,null,null,null,null,null,"00:00:00"]
[null,null,0,null,null,null,null,null,"00:00:00"]
[null,null,0,null,null,null,null,null,"00:00:00"]
[null,null,0,null,null,null,null,null,"00:00:00"]
[null,null,0,null,null,null,null,null,"00:00:00"]
[null,null,0,null,null,null,null,null,"00:00:00"]
[null,null,{"$f":"IF(D456=\"\",0,D456&G456)","v":0},null,null,null,null,null,{"$f":"IF(OR(F456=\"\",F456=\"打刻忘れ\"),0,IF(OR(G456=\"\",G456=\"打刻忘れ\"),0,G456-F456))","v":"00:00:00"}]
[null,null,0,null,null,null,null,null,"00:00:00"]
[null,null,0,null,null,null,null,null,"00:00:00"]
[null,null,0,null,null,null,null,null,"00:00:00"]
[null,null,0,null,null,null,null,null,"00:00:00"]
[null,null,0,null,null,null,null,null,"00:00:00"]
[null,null,0,null,null,null,null,null,"00:00:00"]
[null,null,0,null,null,null,null,null,"00:00:00"]
[null,null,0,null,null,null,null,null,"00:00:00"]
[null,null,0,null,null,null,null,null,"00:00:00"]
[null,null,0,null,null,null,null,null,"00:00:00"]
[null,null,0,null,null,null,null,null,"00:00:00"]
[null,null,0,null,null,null,null,null,"00:00:00"]
[null,null,0,null,null,null,null,null,"00:00:00"]
[null,null,0,null,null,null,null,null,"00:00:00"]
[null,null,0,null,null,null,null,null,"00:00:00"]
[null,null,0,null,null,null,null,null,"00:00:00"]
[null,null,0,null,null,null,null,null,"00:00:00"]
[null,null,0,null,null,null,null,null,"00:00:00"]
[null,null,0,null,null,null,null,null,"00:00:00"]
[null,null,0,null,null,null,null,null,"00:00:00"]
[null,null,0,null,null,null,null,null,"00:00:00"]
[null,null,0,null,null,null,null,null,"00:00:00"]
[null,null,0,null,null,null,null,null,"00:00:00"]
[null,null,0,null,null,null,null,null,"00:00:00"]
[null,null,0,null,null,null,null,null,"00:00:00"]
[null,null,0,null,null,null,null,null,"00:00:00"]
[null,null,0,null,null,null,null,null,"00:00:00"]
[null,null,0,null,null,null,null,null,"00:00:00"]
[null,null,0,null,null,null,null,null,"00:00:00"]
[null,null,0,null,null,null,null,null,"00:00:00"]
[null,null,0,null,null,null,null,null,"00:00:00"]
[null,null,0,null,null,null,null,null,"00:00:00"]
[null,null,0,null,null,null,null,null,"00:00:00"]
[null,null,0,null,null,null,null,null,"00:00:00"]
[null,null,0,null,null,null,null,null,"00:00:00"]
[null,null,0,null,null,null,null,null,"00:00:00"]
[null,null,0,null,null,null,null,null,"00:00:00"]
[null,null,0,null,null,null,null,null,"00:00:00"]
[null,null,0,null,null,null,null,null,"00:00:00"]
[null,null,0,null,null,null,null,null,"00:00:00"]
[null,null,0,null,null,null,null,null,"00:00:00"]
[null,null,0,null,null,null,null,null,"00:00:00"]
[null,null,0,null,null,null,null,null,"00:00:00"]
[null,null,0,null,null,null,null,null,"00:00:00"]

{"sheet":"入力画面説明","index":3,"n_rows":59,"n_cols":8,"rows_kept":59,"cut":false,"hidden":false,"merged":[]}
[null,"荷役作業の時間管理ツール"]
[]
[null,"事業所","〇〇工場","（固定）"]
[]
[null,null,"STEP１",null,"STEP２",null,null,"STEP３"]
[null,null,"便名を以下のリストから選択してください。",null,"【作業開始打刻】 をし、荷役作業を実施ください。",null,null,"すべての荷役作業が終了したことを確認し、【作業終了打刻】 をしてください。"]
[null,null,"便名",null,"↓PUSH",null,null,"↓PUSH"]
[null,null,"12-14時_⑦"]
[]
[null,null,"便名リスト","開始打刻","終了打刻","ステータス"]
[null,null,"8-10時_①"]
[null,null,"8-10時_②"]
[null,null,"8-10時_③"]
[null,null,"8-10時_④"]
[null,null,"8-10時_⑤"]
[null,null,"8-10時_⑥"]
[null,null,"8-10時_⑦"]
[null,null,"8-10時_⑧",45529.378576388888,null,"作業中"]
[null,null,"10-12時_①"]
[null,null,"10-12時_②"]
[null,null,"10-12時_③"]
[null,null,"10-12時_④"]
[null,null,"10-12時_⑤"]
[null,null,"10-12時_⑥",45529.377627314818,null,"作業中","例①"]
[null,null,"10-12時_⑦",45529.377662037034,45529.378668981481,"作業終了","例②"]
[null,null,"10-12時_⑧"]
[null,null,"12-14時_①"]
[null,null,"12-14時_②","打刻忘れ",45529.378750000003,"作業終了","例③"]
[null,null,"12-14時_③"]
[null,null,"12-14時_④"]
[null,null,"12-14時_⑤"]
[null,null,"12-14時_⑥"]
[null,null,"12-14時_⑦",45529.378703703704,null,"作業中"]
[null,null,"12-14時_⑧"]
[null,null,"14-16時_①"]
[null,null,"14-16時_②"]
[null,null,"14-16時_③"]
[null,null,"14-16時_④"]
[null,null,"14-16時_⑤"]
[null,null,"14-16時_⑥"]
[null,null,"14-16時_⑦"]
[null,null,"14-16時_⑧"]
[null,null,"16-18時_①"]
[null,null,"16-18時_②"]
[null,null,"16-18時_③"]
[null,null,"16-18時_④"]
[null,null,"16-18時_⑤"]
[null,null,"16-18時_⑥"]
[null,null,"16-18時_⑦"]
[null,null,"16-18時_⑧"]
[null,null,"18-20時_①"]
[null,null,"18-20時_②"]
[null,null,"18-20時_③"]
[null,null,"18-20時_④"]
[null,null,"18-20時_⑤"]
[null,null,"18-20時_⑥"]
[null,null,"18-20時_⑦"]
[null,null,"18-20時_⑧"]
[null,null,"18-20時_⑨"]